[Event "Mona Karff Memorial 2023"]
[Site "New York"]
[Date "2023.11.19"]
[Round "3.2"]
[White "Stark, Chloe A"]
[Black "Paragua, Megan Althea"]
[Result "0-1"]
[ECO "B92"]
[WhiteElo "1392"]
[BlackElo "1903"]
[Annotator "ChessBase"]
[PlyCount "74"]
[EventDate "2023.11.15"]
[EventType "swiss"]
[EventCountry "USA"]
[SourceTitle "playchess.com"]
[Source "ChessBase"]
[SourceQuality "1"]
[TimeControl "5400+30"]

1. e4 {[%emt 0:00:03]} c5 {[%emt 0:00:13]} 2. Nf3 {[%emt 0:00:06]} d6 {[%emt 0:00:14]} 3. d4 {[%emt 0:00:05]} cxd4 {[%emt 0:00:04]} 4. Nxd4 {[%emt 0:00:07]} Nf6 {[%emt 0:00:10]} 5. Nc3 {[%emt 0:00:09]} a6 {[%emt 0:00:25]} 6. Be2 {[%emt 0:00:52]} e5 {[%emt 0:00:38]} 7. Nb3 {[%emt 0:00:14]} Be7 {[%emt 0:00:08]} 8. a4 {[%emt 0:00:14]} b6 {[%emt 0:02:20]} 9. Be3 {[%emt 0:02:00]} Be6 {[%emt 0:05:11]} 10. O-O {[%emt 0:04:03]} O-O {[%emt 0:00:23]} 11. f4 {[%emt 0:00:49]} exf4 {[%emt 0:00:37]} 12. Bxf4 {[%emt 0:02:53]} Nc6 {[%emt 0:01:25]} 13. Nd4 {[%emt 0:00:41]} Nxd4 {[%emt 0:01:49]} 14. Qxd4 {[%emt 0:00:07]} d5 {[%emt 0:00:42]} 15. Kh1 {[%emt 0:06:10]} dxe4 {[%emt 0:01:40]} 16. Qe5 {[%emt 0:01:49]} Qc8 {[%emt 0:10:29]} 17. Be3 {[%emt 0:06:06]} Qc6 {[%emt 0:03:13]} 18. Rac1 {[%emt 0:04:05]} Rfd8 {[%emt 0:03:45]} 19. Rcd1 {[%emt 0:06:21]} Bd6 {[%emt 0:11:18]} 20. Qg5 {[%emt 0:00:20]} h6 {[%emt 0:10:01]} 21. Qh4 {[%emt 0:00:27]} Be7 {[%emt 0:04:59]} 22. h3 {[%emt 0:11:06]} Rxd1 {[%emt 0:04:17]} 23. Rxd1 {[%emt 0:00:23]} Qc7 {[%emt 0:01:35]} 24. Qf2 {[%emt 0:02:50]} Bc5 {[%emt 0:02:06]} 25. Bxc5 {[%emt 0:00:23]} bxc5 {[%emt 0:01:51]} 26. Qe3 {[%emt 0:00:41]} Qc6 {[%emt 0:00:18]} 27. b3 {[%emt 0:00:35]} Re8 {[%emt 0:04:32]} 28. Qf4 {[%emt 0:00:27]} c4 {[%emt 0:03:28]} 29. Rd6 {[%emt 0:02:54]} Qc5 {[%emt 0:01:24]} 30. Nd1 {[%emt 0:14:00]} cxb3 {[%emt 0:02:48]} 31. cxb3 {[%emt 0:00:09]} Bxb3 {[%emt 0:04:19]} 32. Rxa6 {[%emt 0:00:17]} Bxd1 {[%emt 0:02:00]} 33. Bxd1 {[%emt 0:00:09]} e3 {[%emt 0:00:04]} 34. Be2 {[%emt 0:00:13]} Ne4 {[%emt 0:01:32]} 35. Kh2 {[%emt 0:00:45]} Nc3 {[%emt 0:02:49]} 36. Bc4 {[%emt 0:00:40]} Qe7 {[%emt 0:02:10]} 37. Qf5 {[%emt 0:04:52]} Qc7+ {[%emt 0:00:29]} 0-1

[Event "Mona Karff Memorial 2023"]
[Site "New York"]
[Date "2023.11.19"]
[Round "3.3"]
[White "Radchenko, Anna Sophia"]
[Black "Zlotchevsky, Nicole"]
[Result "0-1"]
[ECO "B41"]
[WhiteElo "1540"]
[BlackElo "1771"]
[Annotator "NA"]
[PlyCount "40"]
[EventDate "2023.11.15"]
[EventType "swiss"]
[EventCountry "USA"]
[SourceTitle "playchess.com"]
[Source "ChessBase"]
[SourceQuality "1"]
[TimeControl "5400+30"]

1. e4 {[%emt 0:04:38]} c5 {[%emt 0:00:08]} 2. Nf3 {[%emt 0:00:08]} e6 {[%emt 0:00:10]} 3. d4 {[%emt 0:00:08]} cxd4 {[%emt 0:00:13]} 4. Nxd4 {[%emt 0:00:06]} a6 {[%emt 0:00:18]} 5. Bc4 {[%emt 0:00:41]} Nf6 {[%emt 0:01:00]} 6. f3 {[%emt 0:04:54]} Qc7 {[%emt 0:01:36]} 7. Bb3 {[%emt 0:01:27]} Bd6 {[%emt 0:04:23]} 8. g3 {[%emt 0:02:15]} Nc6 {[%emt 0:00:56]} 9. Nxc6 {[%emt 0:02:20]} dxc6 {[%emt 0:00:21]} 10. Bg5 {[%emt 0:00:52]} Bxg3+ {[%emt 0:01:35]} 11. hxg3 {[%emt 0:01:43]} Qxg3+ {[%emt 0:00:09]} 12. Kf1 {[%emt 0:00:30]} Qxg5 {[%emt 0:00:30]} 13. Nc3 {[%emt 0:00:30]} O-O {[%emt 0:00:30]} 14. Qd3 {[%emt 0:00:30]} e5 {[%emt 0:00:30]} 15. Kf2 {[%emt 0:00:30]} h5 {[%emt 0:00:30]} 16. Rag1 {[%emt 0:00:30]} Qh6 {[%emt 0:00:30]} 17. Qd6 {[%emt 0:00:30]} Ng4+ {[%emt 0:00:30]} 18. fxg4 {[%emt 0:00:30]} Qxd6 {[%emt 0:00:30]} 19. Rxh5 {[%emt 0:00:30]} Be6 {[%emt 0:00:30]} 20. Rgh1 {[%emt 0:00:30]} f6 {[%emt 0:00:30]} 0-1

[Event "Mona Karff Memorial 2023"]
[Site "New York"]
[Date "2023.11.19"]
[Round "3.4"]
[White "Teasley, Dorothy O."]
[Black "Gaw, Chloe"]
[Result "0-1"]
[ECO "D02"]
[WhiteElo "2044"]
[BlackElo "1863"]
[Annotator "ChessBase"]
[PlyCount "96"]
[EventDate "2023.11.15"]
[EventType "swiss"]
[EventCountry "USA"]
[SourceTitle "playchess.com"]
[Source "ChessBase"]
[SourceQuality "1"]
[TimeControl "5400+30"]

1. d4 {[%emt 0:00:05]} d5 {[%emt 0:00:04]} 2. Nf3 {[%emt 0:00:13]} Nf6 {[%emt 0:00:31]} 3. Bf4 {[%emt 0:00:12]} c5 {[%emt 0:00:14]} 4. e3 {[%emt 0:00:07]} Nc6 {[%emt 0:00:14]} 5. c3 {[%emt 0:00:18]} Bg4 {[%emt 0:00:15]} 6. Be2 {[%emt 0:00:17]} e6 {[%emt 0:00:15]} 7. Nbd2 {[%emt 0:00:15]} Be7 {[%emt 0:00:32]} 8. h3 {[%emt 0:00:08]} Bh5 {[%emt 0:00:11]} 9. O-O {[%emt 0:00:17]} O-O {[%emt 0:00:20]} 10. Ne5 {[%emt 0:02:12]} Bxe2 {[%emt 0:00:09]} 11. Qxe2 {[%emt 0:00:43]} Nd7 {[%emt 0:02:50]} 12. Bh2 {[%emt 0:02:25]} Ndxe5 {[%emt 0:05:44]} 13. dxe5 {[%emt 0:00:47]} Qb6 {[%emt 0:05:06]} 14. Rab1 {[%emt 0:00:31]} Qa5 {[%emt 0:04:10]} 15. a3 {[%emt 0:00:21]} b5 {[%emt 0:02:26]} 16. Ra1 {[%emt 0:02:10]} Qb6 {[%emt 0:01:32]} 17. Nf3 {[%emt 0:02:54]} Rfd8 {[%emt 0:03:48]} 18. Rfd1 {[%emt 0:00:23]} a5 {[%emt 0:03:40]} 19. Bg3 {[%emt 0:00:26]} b4 {[%emt 0:03:07]} 20. axb4 {[%emt 0:00:58]} axb4 {[%emt 0:00:29]} 21. cxb4 {[%emt 0:00:41]} Qxb4 {[%emt 0:02:34]} 22. Qc2 {[%emt 0:02:20]} Rxa1 {[%emt 0:02:56]} 23. Rxa1 {[%emt 0:00:12]} Rb8 {[%emt 0:00:21]} 24. Ra6 {[%emt 0:02:37]} Qb5 {[%emt 0:01:07]} 25. Qa4 {[%emt 0:02:56]} Qxa4 {[%emt 0:00:34]} 26. Rxa4 {[%emt 0:00:02]} Rxb2 {[%emt 0:00:41]} 27. Ra6 {[%emt 0:00:22]} Nb8 {[%emt 0:01:38]} 28. Ra7 {[%emt 0:00:58]} Rb1+ {[%emt 0:01:57]} 29. Kh2 {[%emt 0:00:08]} Kf8 {[%emt 0:00:19]} 30. Rc7 {[%emt 0:01:05]} Ke8 {[%emt 0:01:21]} 31. Bh4 {[%emt 0:00:26]} Bxh4 {[%emt 0:01:06]} 32. Nxh4 {[%emt 0:00:05]} Nd7 {[%emt 0:03:48]} 33. Rc8+ {[%emt 0:01:22]} Ke7 {[%emt 0:00:03]} 34. Nf3 {[%emt 0:00:29]} Rb5 {[%emt 0:02:08]} 35. Rc7 {[%emt 0:00:39]} Kd8 {[%emt 0:00:50]} 36. Ra7 {[%emt 0:00:05]} Rb2 {[%emt 0:01:43]} 37. Kg3 {[%emt 0:00:34]} Kc8 {[%emt 0:06:10]} 38. Ng5 {[%emt 0:01:03]} Nxe5 {[%emt 0:06:56]} 39. Nxf7 {[%emt 0:00:06]} Nxf7 {[%emt 0:00:48]} 40. Rxf7 {[%emt 0:00:13]} Rb7 {[%emt 0:00:21]} 41. Rf8+ {[%emt 1:18:55]} Kd7 {[%emt 0:01:02]} 42. Kf4 {[%emt 0:00:00]} c4 {[%emt 0:01:04]} 43. Ra8 {[%emt 0:00:00]} c3 {[%emt 0:00:42]} 44. Ra1 {[%emt 0:00:00]} Kd6 {[%emt 0:01:54]} 45. Kf3 {[%emt 0:00:00]} Kc5 {[%emt 0:03:01]} 46. Ke2 {[%emt 0:00:00]} Rb2+ {[%emt 0:00:14]} 47. Kf3 {[%emt 0:00:00]} c2 {[%emt 0:00:27]} 48. Rc1 {[%emt 0:00:00]} Kc4 {[%emt 0:33:08]} 0-1

[Event "Mona Karff Memorial 2023"]
[Site "New York"]
[Date "2023.11.19"]
[Round "4.1"]
[White "Paragua, Megan Althea"]
[Black "Krush, Irina"]
[Result "0-1"]
[ECO "D05"]
[WhiteElo "1903"]
[BlackElo "2428"]
[Annotator "RC"]
[PlyCount "92"]
[EventDate "2023.11.15"]
[EventType "swiss"]
[EventCountry "USA"]
[SourceTitle "playchess.com"]
[Source "ChessBase"]
[SourceQuality "1"]
[TimeControl "5400+30"]

1. d4 {[%emt 0:00:06]} Nf6 {[%emt 0:00:38]} 2. Nf3 {[%emt 0:00:11]} e6 {[%emt 0:01:24]} 3. e3 {[%emt 0:00:15]} d5 {[%emt 0:01:06]} 4. Be2 {[%emt 0:00:46]} c5 {[%emt 0:00:40]} 5. O-O {[%emt 0:01:09]} b6 {[%emt 0:03:43]} 6. b3 {[%emt 0:01:40]} Bd6 {[%emt 0:01:48]} 7. Bb2 {[%emt 0:00:28]} O-O {[%emt 0:00:31]} 8. Nbd2 {[%emt 0:01:00]} Nc6 {[%emt 0:08:50]} 9. c4 {[%emt 0:02:48]} Bb7 {[%emt 0:00:53]} 10. Ne5 {[%emt 0:05:02]} cxd4 {[%emt 0:04:38]} 11. Nxc6 {[%emt 0:03:18]} Bxc6 {[%emt 0:00:12]} 12. exd4 {[%emt 0:00:23]} Rc8 {[%emt 0:02:51]} 13. h3 {[%emt 0:15:21]} Qe7 {[%emt 0:02:48]} 14. Bf3 {[%emt 0:08:39]} Rfd8 {[%emt 0:01:06]} 15. Qe2 {[%emt 0:02:21]} Ba3 {[%emt 0:18:49]} 16. Bc3 {[%emt 0:13:45]} Bb4 {[%emt 0:00:56]} 17. Bxb4 {[%emt 0:02:39]} Qxb4 {[%emt 0:00:03]} 18. Rfc1 {[%emt 0:01:02]} dxc4 {[%emt 0:11:37]} 19. Rxc4 {[%emt 0:02:14]} Qd6 {[%emt 0:00:03]} 20. Bxc6 {[%emt 0:03:57]} Rxc6 {[%emt 0:00:10]} 21. Nf3 {[%emt 0:02:27]} b5 {[%emt 0:09:56]} 22. Rc2 {[%emt 0:06:37]} Nd5 {[%emt 0:04:33]} 23. Rac1 {[%emt 0:04:21]} Rxc2 {[%emt 0:00:03]} 24. Qxc2 {[%emt 0:00:54]} b4 {[%emt 0:00:02]} 25. Ng5 {[%emt 0:04:21]} g6 {[%emt 0:00:47]} 26. Ne4 {[%emt 0:03:15]} Qf4 {[%emt 0:00:13]} 27. Rd1 {[%emt 0:01:35]} h5 {[%emt 0:03:59]} 28. Rd2 {[%emt 0:06:18]} h4 {[%emt 0:00:51]} 29. Qd3 {[%emt 0:02:06]} Kg7 {[%emt 0:03:43]} 30. Rc2 {[%emt 0:01:37]} g5 {[%emt 0:07:08]} 31. Rd2 {[%emt 0:03:18]} g4 {[%emt 0:01:14]} 32. g3 {[%emt 0:01:14]} Qf5 {[%emt 0:00:55]} 33. hxg4 {[%emt 0:00:36]} Qxg4 {[%emt 0:00:20]} 34. f3 {[%emt 0:00:05]} Qg6 {[%emt 0:00:57]} 35. Nc5 {[%emt 0:00:34]} Qxg3+ {[%emt 0:01:57]} 36. Kf1 {[%emt 0:00:33]} Qh3+ {[%emt 0:01:19]} 37. Kg1 {[%emt 0:00:12]} Rg8 {[%emt 0:00:52]} 38. Rh2 {[%emt 0:00:38]} Kf8+ {[%emt 0:00:26]} 39. Kh1 {[%emt 0:00:07]} Qg3 {[%emt 0:00:21]} 40. Qf1 {[%emt 0:00:16]} Qf4 {[%emt 0:01:05]} 41. Ne4 {[%emt 0:00:50]} Ne3 {[%emt 0:01:06]} 42. Qe2 {[%emt 0:00:24]} Nf5 {[%emt 0:00:45]} 43. Qd1 {[%emt 0:01:04]} Ng3+ {[%emt 0:02:21]} 44. Nxg3 {[%emt 0:00:10]} hxg3 {[%emt 0:00:02]} 45. Qd2 {[%emt 0:01:04]} Qxf3+ {[%emt 0:00:26]} 46. Rg2 {[%emt 0:00:07]} Qf1+ {[%emt 0:00:12]} 0-1

[Event "Mona Karff Memorial 2023"]
[Site "New York"]
[Date "2023.11.19"]
[Round "4.2"]
[White "Aravindakshan, Sahana"]
[Black "Zlotchevsky, Nicole"]
[Result "1-0"]
[ECO "E27"]
[WhiteElo "1921"]
[BlackElo "1771"]
[Annotator "RC"]
[PlyCount "57"]
[EventDate "2023.11.15"]
[EventType "swiss"]
[EventCountry "USA"]
[SourceTitle "playchess.com"]
[Source "ChessBase"]
[SourceQuality "1"]
[TimeControl "5400+30"]

1. d4 {[%emt 0:00:01]} Nf6 {[%emt 0:03:18]} 2. c4 {[%emt 0:00:04]} e6 {[%emt 0:00:21]} 3. Nc3 {[%emt 0:00:04]} Bb4 {[%emt 0:00:51]} 4. a3 {[%emt 0:00:04]} Bxc3+ {[%emt 0:00:17]} 5. bxc3 {[%emt 0:00:02]} b6 {[%emt 0:01:06]} 6. f3 {[%emt 0:00:11]} d5 {[%emt 0:01:50]} 7. cxd5 {[%emt 0:01:13]} exd5 {[%emt 0:01:35]} 8. e3 {[%emt 0:01:06]} Bb7 {[%emt 0:01:35]} 9. Bd3 {[%emt 0:03:56]} Nbd7 {[%emt 0:03:05]} 10. Ne2 {[%emt 0:02:57]} O-O {[%emt 0:03:56]} 11. O-O {[%emt 0:01:55]} c5 {[%emt 0:01:38]} 12. Ng3 {[%emt 0:01:36]} Re8 {[%emt 0:03:12]} 13. Ra2 {[%emt 0:16:16]} c4 {[%emt 0:08:34]} 14. Bb1 {[%emt 0:01:53]} b5 {[%emt 0:01:54]} 15. Re2 {[%emt 0:05:10]} a5 {[%emt 0:05:53]} 16. e4 {[%emt 0:02:39]} dxe4 {[%emt 0:02:20]} 17. fxe4 {[%emt 0:00:25]} Qb6 {[%emt 0:07:27]} 18. Kh1 {[%emt 0:04:12]} b4 {[%emt 0:07:33]} 19. e5 {[%emt 0:05:05]} Nd5 {[%emt 0:01:57]} 20. Ref2 {[%emt 0:01:55]} Rf8 {[%emt 0:19:49]} 21. Qg4 {[%emt 0:08:16]} Qc6 {[%emt 0:09:48]} 22. Nf5 {[%emt 0:11:41]} g6 {[%emt 0:02:00]} 23. Nh6+ {[%emt 0:04:26]} Kh8 {[%emt 0:00:30]} 24. Nxf7+ {[%emt 0:00:42]} Kg8 {[%emt 0:02:39]} 25. Bh6 {[%emt 0:05:41]} Rfe8 {[%emt 0:09:11]} 26. Nd6 {[%emt 0:02:13]} Ne7 {[%emt 0:00:28]} 27. Rf7 {[%emt 0:06:08]} Nf8 {[%emt 0:00:23]} 28. Rg7+ {[%emt 0:00:23]} Kh8 {[%emt 0:00:03]} 29. Nf7# {[%emt 0:14:46]} 1-0

[Event "Mona Karff Memorial 2023"]
[Site "New York"]
[Date "2023.11.19"]
[Round "4.4"]
[White "Moshkevich, Elizabeth"]
[Black "Regam, Jessica"]
[Result "0-1"]
[ECO "B07"]
[WhiteElo "1691"]
[BlackElo "1873"]
[Annotator "NA COMBH"]
[PlyCount "68"]
[EventDate "2023.11.15"]
[EventType "swiss"]
[EventCountry "USA"]
[SourceTitle "playchess.com"]
[Source "ChessBase"]
[SourceQuality "1"]
[TimeControl "5400+30"]

1. e4 {[%emt 0:02:15]} d6 {[%emt 0:03:03]} 2. d4 {[%emt 0:02:07]} Nf6 {[%emt 0:02:56]} 3. Nc3 {[%emt 0:00:05]} c6 {[%emt 0:00:04]} 4. Be3 {[%emt 0:00:06]} Qa5 {[%emt 0:01:30]} 5. Bd3 {[%emt 0:01:57]} e5 {[%emt 0:05:53]} 6. Nge2 {[%emt 0:03:34]} Ng4 {[%emt 0:09:37]} 7. Bd2 {[%emt 0:13:29]} exd4 {[%emt 0:08:30]} 8. Nb5 {[%emt 0:03:10]} Qb6 {[%emt 0:00:58]} 9. Nbxd4 {[%emt 0:00:44]} c5 {[%emt 0:01:43]} 10. f3 {[%emt 0:00:41]} Ne5 {[%emt 0:02:04]} 11. Bb5+ {[%emt 0:01:11]} Kd8 {[%emt 0:00:08]} 12. Nb3 {[%emt 0:06:24]} Qxb5 {[%emt 0:00:16]} 13. Nc3 {[%emt 0:00:03]} Qd7 {[%emt 0:02:47]} 14. Nd5 {[%emt 0:00:10]} Nbc6 {[%emt 0:01:03]} 15. Bf4 {[%emt 0:02:02]} b6 {[%emt 0:05:03]} 16. Qd2 {[%emt 0:00:29]} Ne7 {[%emt 0:07:30]} 17. Bxe5 {[%emt 0:03:07]} dxe5 {[%emt 0:00:11]} 18. Nxc5 {[%emt 0:00:20]} Qd6 {[%emt 0:01:36]} 19. Na4 {[%emt 0:06:28]} Nxd5 {[%emt 0:00:11]} 20. O-O-O {[%emt 0:00:29]} Bd7 {[%emt 0:03:15]} 21. Qxd5 {[%emt 0:00:45]} Qxd5 {[%emt 0:00:08]} 22. Rxd5 {[%emt 0:00:02]} Kc7 {[%emt 0:00:24]} 23. Nc3 {[%emt 0:00:04]} f6 {[%emt 0:00:31]} 24. Rhd1 {[%emt 0:00:50]} Bc6 {[%emt 0:00:00]} 25. R5d3 {[%emt 0:00:15]} Bc5 {[%emt 0:00:38]} 26. a3 {[%emt 0:00:38]} Rhd8 {[%emt 0:01:18]} 27. Nd5+ {[%emt 0:00:14]} Bxd5 {[%emt 0:00:22]} 28. exd5 {[%emt 0:00:01]} a5 {[%emt 0:01:01]} 29. c3 {[%emt 0:00:16]} b5 {[%emt 0:01:35]} 30. Kd2 {[%emt 0:00:37]} Ra6 {[%emt 0:02:46]} 31. Ke2 {[%emt 0:01:19]} Rad6 {[%emt 0:02:10]} 32. b4 {[%emt 0:00:39]} axb4 {[%emt 0:00:05]} 33. axb4 {[%emt 0:00:04]} Bb6 {[%emt 0:00:05]} 34. g3 {[%emt 0:00:18]} f5 {[%emt 0:00:40]} 0-1

[Event "Mona Karff Memorial 2023"]
[Site "New York"]
[Date "2023.11.20"]
[Round "5.1"]
[White "Krush, Irina"]
[Black "Regam, Jessica"]
[Result "1-0"]
[ECO "E92"]
[WhiteElo "2428"]
[BlackElo "1873"]
[Annotator "RC"]
[PlyCount "65"]
[EventDate "2023.11.15"]
[EventType "swiss"]
[EventCountry "USA"]
[SourceTitle "playchess.com"]
[Source "ChessBase"]
[SourceQuality "1"]
[TimeControl "5400+30"]

1. d4 {[%emt 0:00:04]} Nf6 {[%emt 0:03:50]} 2. c4 {[%emt 0:00:10]} g6 {[%emt 0:00:09]} 3. Nc3 {[%emt 0:00:07]} Bg7 {[%emt 0:00:05]} 4. e4 {[%emt 0:00:09]} d6 {[%emt 0:00:04]} 5. Be2 {[%emt 0:00:11]} O-O {[%emt 0:00:30]} 6. Nf3 {[%emt 0:00:08]} e5 {[%emt 0:00:37]} 7. d5 {[%emt 0:00:15]} Na6 {[%emt 0:09:45]} 8. Be3 {[%emt 0:02:31]} Nh5 {[%emt 0:04:24]} 9. Nd2 {[%emt 0:03:36]} Nf4 {[%emt 0:01:53]} 10. Bf1 {[%emt 0:00:17]} f5 {[%emt 0:03:31]} 11. g3 {[%emt 0:00:31]} Ng2+ {[%emt 0:05:35]} 12. Bxg2 {[%emt 0:00:11]} f4 {[%emt 0:00:02]} 13. Qe2 {[%emt 0:01:19]} fxe3 {[%emt 0:26:54]} 14. Qxe3 {[%emt 0:00:30]} Rf6 {[%emt 0:02:25]} 15. O-O-O {[%emt 0:15:08]} Qf8 {[%emt 0:01:30]} 16. f3 {[%emt 0:00:08]} c6 {[%emt 0:03:12]} 17. Kb1 {[%emt 0:00:34]} Nc7 {[%emt 0:03:59]} 18. h4 {[%emt 0:03:04]} h5 {[%emt 0:00:55]} 19. Ne2 {[%emt 0:04:29]} Bd7 {[%emt 0:02:42]} 20. f4 {[%emt 0:04:21]} exf4 {[%emt 0:04:25]} 21. gxf4 {[%emt 0:00:17]} cxd5 {[%emt 0:01:04]} 22. cxd5 {[%emt 0:01:19]} Bb5 {[%emt 0:00:23]} 23. Nd4 {[%emt 0:09:44]} Rxf4 {[%emt 0:01:30]} 24. Rc1 {[%emt 0:00:02]} Qf6 {[%emt 0:07:35]} 25. Rxc7 {[%emt 0:01:30]} Qxd4 {[%emt 0:00:13]} 26. Rxg7+ {[%emt 0:00:21]} Qxg7 {[%emt 0:00:04]} 27. Qxf4 {[%emt 0:00:12]} Rf8 {[%emt 0:00:20]} 28. Qe3 {[%emt 0:02:09]} Qe5 {[%emt 0:00:32]} 29. Bh3 {[%emt 0:03:06]} Rf4 {[%emt 0:01:24]} 30. Be6+ {[%emt 0:00:25]} Kh7 {[%emt 0:00:13]} 31. Nf3 {[%emt 0:11:35]} Qf6 {[%emt 0:00:43]} 32. Ng5+ {[%emt 0:00:02]} Kh6 {[%emt 0:01:13]} 33. Nh3 {[%emt 0:01:14]} 1-0

[Event "Mona Karff Memorial 2023"]
[Site "New York"]
[Date "2023.11.20"]
[Round "5.2"]
[White "Aravindakshan, Sahana"]
[Black "Gaw, Chloe"]
[Result "0-1"]
[ECO "D27"]
[WhiteElo "1921"]
[BlackElo "1863"]
[Annotator "RC"]
[PlyCount "92"]
[EventDate "2023.11.15"]
[EventType "swiss"]
[EventCountry "USA"]
[SourceTitle "playchess.com"]
[Source "ChessBase"]
[SourceQuality "1"]
[TimeControl "5400+30"]

1. d4 {[%emt 0:01:24]} d5 {[%emt 0:00:02]} 2. c4 {[%emt 0:00:09]} dxc4 {[%emt 0:00:04]} 3. e3 {[%emt 0:00:06]} Nf6 {[%emt 0:00:08]} 4. Bxc4 {[%emt 0:00:07]} e6 {[%emt 0:00:03]} 5. Nf3 {[%emt 0:00:09]} c5 {[%emt 0:00:06]} 6. O-O {[%emt 0:00:12]} a6 {[%emt 0:00:04]} 7. e4 {[%emt 0:01:33]} b5 {[%emt 0:03:09]} 8. Bd3 {[%emt 0:00:22]} Bb7 {[%emt 0:01:57]} 9. Re1 {[%emt 0:22:34]} cxd4 {[%emt 0:05:41]} 10. a4 {[%emt 0:01:43]} b4 {[%emt 0:03:19]} 11. Nbd2 {[%emt 0:02:33]} Nc6 {[%emt 0:04:30]} 12. e5 {[%emt 0:02:08]} Nd7 {[%emt 0:01:42]} 13. Nb3 {[%emt 0:10:16]} Nc5 {[%emt 0:17:08]} 14. Nxc5 {[%emt 0:02:22]} Bxc5 {[%emt 0:01:25]} 15. Ng5 {[%emt 0:08:44]} Be7 {[%emt 0:31:56]} 16. Qg4 {[%emt 0:08:41]} h5 {[%emt 0:05:44]} 17. Qg3 {[%emt 0:02:51]} Bxg5 {[%emt 0:04:42]} 18. Bxg5 {[%emt 0:00:26]} Ne7 {[%emt 0:01:42]} 19. Rac1 {[%emt 0:19:44]} Qd7 {[%emt 0:02:12]} 20. Bxe7 {[%emt 0:00:10]} Qxe7 {[%emt 0:00:42]} 21. Rc4 {[%emt 0:04:57]} O-O {[%emt 0:03:22]} 22. Rec1 {[%emt 0:04:19]} Rac8 {[%emt 0:01:08]} 23. Qf4 {[%emt 0:01:03]} Qd7 {[%emt 0:03:13]} 24. Rxb4 {[%emt 0:02:15]} Rxc1+ {[%emt 0:02:38]} 25. Qxc1 {[%emt 0:00:02]} a5 {[%emt 0:00:47]} 26. Rc4 {[%emt 0:03:22]} Qd5 {[%emt 0:01:12]} 27. f3 {[%emt 0:00:39]} Qxe5 {[%emt 0:02:51]} 28. Rc5 {[%emt 0:00:15]} Bd5 {[%emt 0:02:10]} 29. Rc8 {[%emt 0:01:09]} g6 {[%emt 0:00:44]} 30. Rxf8+ {[%emt 0:00:39]} Kxf8 {[%emt 0:00:01]} 31. Qh6+ {[%emt 0:00:34]} Ke7 {[%emt 0:00:15]} 32. Qc1 {[%emt 0:00:27]} Bb3 {[%emt 0:00:49]} 33. Bb5 {[%emt 0:00:25]} d3 {[%emt 0:00:40]} 34. Qd2 {[%emt 0:00:35]} Qd4+ {[%emt 0:00:46]} 35. Kf1 {[%emt 0:00:27]} Bc2 {[%emt 0:00:20]} 36. h3 {[%emt 0:00:37]} Qxb2 {[%emt 0:00:28]} 37. Qxa5 {[%emt 0:00:14]} Qc1+ {[%emt 0:00:37]} 38. Kf2 {[%emt 0:00:07]} d2 {[%emt 0:00:23]} 39. Qb4+ {[%emt 0:00:12]} Kf6 {[%emt 0:00:18]} 40. Qd4+ {[%emt 0:00:25]} e5 {[%emt 0:00:33]} 41. Qd6+ {[%emt 0:00:17]} Kg7 {[%emt 0:00:27]} 42. Qxe5+ {[%emt 0:00:04]} Kh7 {[%emt 0:00:08]} 43. Qe7 {[%emt 0:02:04]} Bb3 {[%emt 0:00:30]} 44. Bd3 {[%emt 0:00:36]} d1=Q {[%emt 0:01:54]} 45. Bxg6+ {[%emt 0:00:09]} Kxg6 {[%emt 0:00:00]} 46. Qe4+ {[%emt 0:00:07]} Kh6 {[%emt 0:00:00]} 0-1

[Event "Mona Karff Memorial 2023"]
[Site "New York"]
[Date "2023.11.20"]
[Round "5.3"]
[White "Zlotchevsky, Nicole"]
[Black "Paragua, Megan Althea"]
[Result "0-1"]
[ECO "B90"]
[WhiteElo "1771"]
[BlackElo "1903"]
[Annotator "RC"]
[PlyCount "84"]
[EventDate "2023.11.15"]
[EventType "swiss"]
[EventCountry "USA"]
[SourceTitle "playchess.com"]
[Source "ChessBase"]
[SourceQuality "1"]
[TimeControl "5400+30"]

1. e4 {[%emt 1:31:00]} c5 {[%emt 1:31:00]} 2. Nf3 {[%emt 0:00:30]} d6 {[%emt 0:00:30]} 3. d4 {[%emt 0:00:30]} cxd4 {[%emt 0:00:30]} 4. Nxd4 {[%emt 0:00:30]} Nf6 {[%emt 0:00:30]} 5. Nc3 {[%emt 0:00:30]} a6 {[%emt 0:00:30]} 6. h3 {[%emt 0:00:30]} e5 {[%emt 0:00:30]} 7. Nde2 {[%emt 0:00:30]} Be7 {[%emt 0:00:30]} 8. g4 {[%emt 0:00:30]} h6 {[%emt 0:00:30]} 9. Bg2 {[%emt 0:00:30]} Be6 {[%emt 0:00:30]} 10. Be3 {[%emt 0:00:30]} O-O {[%emt 0:00:30]} 11. Ng3 {[%emt 0:00:30]} Nbd7 {[%emt 0:00:30]} 12. O-O {[%emt 0:00:30]} Rc8 {[%emt 0:00:30]} 13. Nd5 {[%emt 0:00:30]} Bxd5 {[%emt 0:00:30]} 14. exd5 {[%emt 0:00:30]} Re8 {[%emt 0:00:30]} 15. Nf5 {[%emt 0:00:30]} Nh7 {[%emt 0:00:30]} 16. Qd2 {[%emt 0:00:30]} Bf8 {[%emt 0:00:30]} 17. Rae1 {[%emt 0:00:30]} Qf6 {[%emt 0:00:30]} 18. c3 {[%emt 0:00:30]} g6 {[%emt 0:00:30]} 19. Ng3 {[%emt 0:00:30]} Qh4 {[%emt 0:00:30]} 20. a4 {[%emt 0:00:30]} Ndf6 {[%emt 0:00:30]} 21. a5 {[%emt 0:00:30]} Ng5 {[%emt 0:00:30]} 22. Bxg5 {[%emt 0:00:30]} hxg5 {[%emt 0:00:30]} 23. Ne4 {[%emt 0:00:30]} Nh7 {[%emt 0:00:30]} 24. Ng3 {[%emt 0:00:30]} Be7 {[%emt 0:00:30]} 25. Qd3 {[%emt 0:00:30]} Kg7 {[%emt 0:00:30]} 26. c4 {[%emt 0:00:30]} Nf6 {[%emt 0:00:30]} 27. b4 {[%emt 0:00:30]} Nxg4 {[%emt 0:00:30]} 28. hxg4 {[%emt 0:00:30]} Rh8 {[%emt 0:00:30]} 29. f4 {[%emt 0:00:30]} gxf4 {[%emt 0:00:30]} 30. Ne2 {[%emt 0:00:30]} Qh2+ {[%emt 0:00:30]} 31. Kf2 {[%emt 0:00:30]} Bh4+ {[%emt 0:00:30]} 32. Kf3 {[%emt 0:00:30]} Bxe1 {[%emt 0:00:30]} 33. Rxe1 {[%emt 0:00:30]} Rh3+ {[%emt 0:00:30]} 34. Bxh3 {[%emt 0:00:30]} Qxh3+ {[%emt 0:00:30]} 35. Ng3 {[%emt 0:00:30]} Qxg3+ {[%emt 0:00:30]} 36. Ke2 {[%emt 0:00:30]} Qxg4+ {[%emt 0:00:30]} 37. Kd2 {[%emt 0:00:30]} Rh8 {[%emt 0:00:30]} 38. c5 {[%emt 0:00:30]} Rh2+ {[%emt 0:00:30]} 39. Kc1 {[%emt 0:00:30]} Qg2 {[%emt 0:00:30]} 40. Qc3 {[%emt 0:00:30]} Rh3 {[%emt 0:00:30]} 41. Qb2 {[%emt 0:00:30]} Qxd5 {[%emt 0:00:30]} 42. cxd6 {[%emt 0:00:30]} Qc4+ {[%emt 0:00:30]} 0-1